Cogmind - Beta 10.2 *** ADVENTURER MODE // 2021.04.26 @ 18:32:32 Player: Chiefwannatoke Result: Self-destructed Performance ------------- Evolutions (6) 3000 Regions Visited (10) 2000 Robots Destroyed (118) 590 Value Destroyed (4621) 4621 Prototype IDs (11) 220 Alien Tech Used (0) 0 Bonus (372) 372 TOTAL SCORE: 10803 Bonus ------- Pacifist 200 Follower Combat Kills 172 Cogmind --------- Core Integrity 1009/1150 Matter 150/300 Energy 4/670 System Corruption 0% Temperature Cool (764) Movement Hovering (146) Ox2 Location -4/Factory Parts ------- > --- POWER (1) -------- Micro Fission Core > --- PROPULSION (4) --- Improved Gyrokinetic Inverter Improved Gyrokinetic Inverter Improved Gyrokinetic Inverter Improved Gyrokinetic Inverter > --- UTILITY (10) ----- Improved Cryofiber Web Medium Storage Unit Energy Well Advanced Signal Interpreter Targeting Computer Improved Target Analyzer Recoil Nullifier Improved Kinecellerator Improved Weapon Cycler Improved Force Field > --- WEAPON (4) ------- Railgun Railgun Mass Driver Hardcell Cannon > --- INVENTORY (8) ---- Micro Fission Core Linear Gravjet Linear Gravjet Matter Compressor (250) Focal Shield Force Field KE Penetrator Heavy Gauss Cannon Peak State ------------ > --- POWER ------------ Micro Fission Core > --- PROPULSION ------- Improved Gyrokinetic Inverter Improved Gyrokinetic Inverter Improved Gyrokinetic Inverter Improved Gyrokinetic Inverter > --- UTILITY ---------- Improved Cryofiber Web Medium Storage Unit Energy Well Advanced Signal Interpreter Targeting Computer Improved Target Analyzer Recoil Nullifier Improved Kinecellerator Improved Weapon Cycler Improved Force Field > --- WEAPON ----------- Railgun Railgun Mass Driver Heavy Gauss Cannon > --- INVENTORY -------- Micro Fission Core Linear Gravjet Linear Gravjet Matter Compressor Focal Shield Force Field KE Penetrator Mass Driver [Rating: 110] Favorites ----------- Power Micro Fission Core Engine Improved Deuterium Engine Power Core Micro Fission Core Propulsion Armored Treads Treads Armored Treads Leg Aluminum Leg Hover Unit Improved Gyrokinetic Inverter Flight Unit Field Propulsion Drive Utility Advanced Signal Interpreter Device Force Field Storage Energy Well Processor Advanced Signal Interpreter Protection Hardened Light Armor Plating Weapon Gauss Rifle Energy Gun Wave Gun Energy Cannon Ion Cannon Ballistic Gun Gauss Rifle Ballistic Cannon Mass Driver Launcher Rocket Launcher Slashing Weapon Scythe Build | -11 -10 -10 -9 -8 -7 -7 -7 -6 -5 -4 ------- Run | Scr Mat Min Mat Mat Fac Was Fac Fac Fac Fac Slots Evolved 12 | . . . 2 2 2 . . 2 2 2 Power . | . . . . . . . . . . . Propulsion 2 | . . . . . . . . 1 . 1 Utility 8 | . . . 2 2 2 . . 1 1 . Weapon 2 | . . . . . . . . . 1 1 Parts Attached 139 | 6 . 3 13 8 8 4 15 29 40 13 Power 13 | 1 . . 1 2 . . 1 2 6 . Engine 4 | 1 . . 1 1 . . 1 . . . Core 9 | . . . . 1 . . . 2 6 . Reactor . | . . . . . . . . . . . Propulsion 29 | 2 . . 2 . 1 3 2 6 9 4 Treads 13 | . . . 2 . 1 1 . 6 3 . Leg 2 | 2 . . . . . . . . . . Wheel . | . . . . . . . . . . . Hover 13 | . . . . . . 1 2 . 6 4 Flight 1 | . . . . . . 1 . . . . Utility 52 | 1 . 3 6 3 3 . 5 17 12 2 Device 29 | . . 2 4 2 2 . 2 6 9 2 Storage 4 | 1 . 1 . . . . . 2 . . Processor 6 | . . . 1 . . . . 3 2 . Hackware . | . . . . . . . . . . . Protection 13 | . . . 1 1 1 . 3 6 1 . Artifact . | . . . . . . . . . . . Weapon 45 | 2 . . 4 3 4 1 7 4 13 7 Energy Gun 8 | . . . 1 1 . . 3 . 3 . Energy Cannon 3 | . . . 1 1 . . . . 1 . Ballistic Gun 25 | 2 . . 2 1 4 1 . 4 9 2 Ballistic Cannon 5 | . . . . . . . . . . 5 Launcher 1 | . . . . . . . 1 . . . Special Weapon . | . . . . . . . . . . . Impact Weapon . | . . . . . . . . . . . Slashing Weapon 3 | . . . . . . . 3 . . . Piercing Weapon . | . . . . . . . . . . . Special Melee Weapon . | . . . . . . . . . . . Unidentified Prototypes 7 | . . 1 1 1 1 . 3 . . . Parts Lost 16 | . . . 1 . . 6 3 4 2 . Power 2 | . . . . . . 1 . 1 . . Propulsion 2 | . . . . . . . 1 . 1 . Utility 10 | . . . 1 . . 4 1 3 1 . Weapon 2 | . . . . . . 1 1 . . . Highest Loss Streak 6 | . . . 1 . . 6 2 1 2 . Average Slot Usage (%) 91 | . 85 85 91 98 97 69 58 93 92 99 Engine 3 | . 14 14 11 7 . . 6 1 . . Core 3 | . . . . 1 7 4 . 4 5 5 Treads 13 | . . . 20 18 14 9 . 18 14 . Leg 1 | . 28 28 1 . . . . . . . Hover 2 | . . . . . . 1 9 . 2 21 Device 15 | . . 9 19 16 28 20 6 11 13 26 Storage 9 | . 14 4 11 9 7 4 . 11 11 10 Processor 11 | . . . 2 9 7 7 7 16 17 15 Protection 10 | . . . 3 18 15 9 11 13 7 . Energy Gun 1 | . . . . 3 . . 3 . 2 . Ballistic Gun 12 | . 28 28 18 9 13 9 . 10 11 15 Slashing Weapon 1 | . . . . . . . 5 2 . . Naked Turns . | . . . . . . . . . . . Heaviest Build 70 | 11 11 15 26 35 32 30 27 58 59 70 Greatest Support 68 | 20 20 20 40 40 40 40 35 60 60 68 Greatest Overweight (x) 4 | 3 . . . . 1 4 1 1 3 1 Average Overweight (x) . | . . . . . . . . . . . Largest Inventory Capacity 8 | 6 6 6 6 6 6 6 4 8 8 8 Average Capacity 6 | 5 6 4 6 6 6 5 4 7 8 8 Most Carried 8 | 4 5 5 6 6 6 6 3 8 8 8 Average Carried 6 | 2 4 4 5 5 6 5 1 6 7 5 Final Capacity 8 | 6 6 6 6 6 6 4 4 8 8 8 Final Carried 8 | 4 5 5 6 6 6 4 1 8 5 8 Class Distribution -------------------- 61% | Mutant 17% | Scavenger-Mutant 5% | Scavenger-Gunner 4% | Tank 4% | Scavenger-Tank 3% | Gunner 3% | Machinist-Gunner Dominant Class ---------------- Mutant | -10/Materials Mutant | -10/Mines Mutant | -9/Materials Mutant | -8/Materials Mutant | -7/Factory Mutant | -7/Waste Mutant | -7/Factory Mutant | -6/Factory Mutant | -5/Factory Scavenger-Gunner | -4/Factory Resources | -11 -10 -10 -9 -8 -7 -7 -7 -6 -5 -4 ----------- Run | Scr Mat Min Mat Mat Fac Was Fac Fac Fac Fac Matter Collected 3680 | 260 . 14 198 209 225 . 98 1076 1271 329 Remotely . | . . . . . . . . . . . Salvage Created 5533 | . . . 323 639 616 . 230 1419 2055 251 Parts 272 | . . . 15 42 29 . 13 78 88 7 Haulers Intercepted 2 | . . . . . . . . 1 . 1 Recyclers Shooed 3 | . . . . 1 . . . 1 1 . Parts Field Recycled . | . . . . . . . . . . . Retrieved Matter . | . . . . . . . . . . . Parts Self-Destructed . | . . . . . . . . . . . Prevented . | . . . . . . . . . . . Kills | -11 -10 -10 -9 -8 -7 -7 -7 -6 -5 -4 ------- Run | Scr Mat Min Mat Mat Fac Was Fac Fac Fac Fac Combat Hostiles Destroyed 96 | . . . 7 15 14 . 6 21 27 6 Melee 3 | . . . . . . . 1 2 . . Guns 81 | . . . 6 13 14 . 1 19 26 2 Cannons 8 | . . . 1 2 . . . . 1 4 AOE 4 | . . . . . . . 4 . . . Classes Destroyed 11 | . . . 2 1 1 . 1 5 1 . Worker 6 | . . . . . . . . 5 1 . Builder 7 | . . . . . 1 . 1 2 2 1 Hauler 2 | . . . . . . . . 1 . 1 Recycler 4 | . . . . . . . . 1 3 . Watcher 3 | . . . . . . . . 1 2 . Swarmer 24 | . . . . 4 4 . . 6 5 5 Grunt 41 | . . . 4 6 9 . 3 7 12 . Brawler 1 | . . . . . . . . . 1 . Sentry 15 | . . . 3 5 1 . 2 . 3 1 Hunter 3 | . . . . . . . . 3 . . Programmer 12 | . . . . . . . 1 5 6 . Best Kill Streak 8 | . . . 4 5 5 . 3 6 8 7 Combat Bots Only 5 | . . . 4 5 5 . 3 5 5 5 Max Kills in Single Turn 2 | . . . 1 2 2 . 2 2 2 2 Gunslinging 1 | . . . . 1 1 . . . 1 . Exploded 2 | . . . . . . . 2 . . . Melee 1 | . . . . . . . 1 1 . . Uniques/NPCs Destroyed . | . . . . . . . . . . . Combat | -11 -10 -10 -9 -8 -7 -7 -7 -6 -5 -4 -------- Run | Scr Mat Min Mat Mat Fac Was Fac Fac Fac Fac Damage Taken 5277 | . 44 . 340 731 401 139 600 1280 1395 347 Core 731 | . . . 54 95 41 61 99 128 112 141 Absorbed by Shields 1348 | . . . . . . . . 629 654 65 Core Remaining (%) 87 | 100 . 100 86 82 . . 71 84 88 . Volleys Fired 273 | . . . 24 43 24 3 21 72 73 13 Largest 4 | . . . 2 2 2 2 1 2 3 4 Hottest 192 | . . . 83 98 56 56 50 56 154 192 Shots Fired 563 | . . . 48 75 49 6 21 144 189 31 Gun 518 | . . . 46 69 49 6 12 144 180 12 Cannon 36 | . . . 2 6 . . . . 9 19 Launcher 9 | . . . . . . . 9 . . . Special . | . . . . . . . . . . . Kinetic 471 | . . . 45 43 49 6 . 144 153 31 Thermal 64 | . . . 3 32 . . . . 29 . Explosive 9 | . . . . . . . 9 . . . Electromagnetic 19 | . . . . . . . 12 . 7 . Robot Hit Streak 60 | . . . 21 23 13 4 11 36 60 9 Robot Miss Streak 2 | . . . 1 2 1 1 1 2 1 2 Penetration Max 1 | . . . . . 1 . . 1 1 . Secondary Targets 11 | . . . . 2 2 . . 3 4 . Max Gunslinging Chain 1 | . . . . 1 1 . . 1 1 . Shots Hit Robots 491 | . . . 44 65 38 5 21 130 169 19 Core Hits 211 | . . . 14 26 20 . 21 53 68 9 Critical Hits 25 | . . . . . . . 1 3 18 3 Critical Kills 9 | . . . . . . . . 1 7 1 Critical Parts Destroyed 14 | . . . . . . . . 2 11 1 Melee Attacks 13 | . . . . . . . 4 9 . . Impact . | . . . . . . . . . . . Slashing 13 | . . . . . . . 4 9 . . Piercing . | . . . . . . . . . . . Sneak Attacks . | . . . . . . . . . . . Combat Hostiles . | . . . . . . . . . . . Follow-up Attacks 1 | . . . . . . . 1 . . . Damage Inflicted 11675 | . . . 441 1087 861 105 691 3468 4348 674 Guns 9997 | . . . 396 969 861 105 149 3220 4048 249 Cannons 886 | . . . 45 118 . . . . 298 425 Explosions 449 | . . . . . . . 449 . . . Melee 341 | . . . . . . . 93 248 . . Ramming 2 | . . . . . . . . . 2 . Kinetic 9351 | . . . 382 597 861 105 . 3220 3512 674 Thermal 1400 | . . . 59 490 . . 41 . 810 . Explosive 408 | . . . . . . . 408 . . . Electromagnetic 173 | . . . . . . . 149 . 24 . Impact . | . . . . . . . . . . . Slashing 341 | . . . . . . . 93 248 . . Piercing . | . . . . . . . . . . . Highest Corruption 12 | . 1 1 . . 5 5 6 1 12 . Average Corruption 5 | . 1 1 . . 5 5 5 1 8 . Corruption Purged 6 | . . . . . . . . 1 5 . Effects 101 | . 1 2 . . 25 2 9 1 61 . Message Errors 15 | . 1 . . . 5 . 2 . 7 . Matter Fused 22 | . . . . . 3 1 2 . 16 . Heat Flow Errors 10 | . . . . . 3 . 1 . 6 . Energy Discharges 13 | . . 1 . . 3 1 . 1 7 . Parts Rejected 2 | . . . . . 1 . . . 1 . Data Loss (minor) 6 | . . 1 . . 1 . 2 . 2 . Data Loss (major) 4 | . . . . . 2 . . . 2 . Misfires 4 | . . . . . 2 . . . 2 . Alerts 1 | . . . . . . . . . 1 . Misdirections 1 | . . . . . . . . . 1 . Targeting Errors 20 | . . . . . 4 . 2 . 14 . Weapon Failures 3 | . . . . . 1 . . . 2 . Overload Shots . | . . . . . . . . . . . Overflow Damage 32 | . . . . . . . 16 . . 16 Projectiles 16 | . . . . . . . . . . 16 Explosions 16 | . . . . . . . 16 . . . Melee . | . . . . . . . . . . . Knockbacks . | . . . . . . . . . . . Impact . | . . . . . . . . . . . Kinetic . | . . . . . . . . . . . Secondary . | . . . . . . . . . . . Self-Inflicted Damage 146 | . . . . . . . 146 . . . Shots 5 | . . . . . . . 5 . . . Rammed 2 | . . . . . . . . . 2 . Targets Rammed 2 | . . . . . . . . . 2 . Kicked . | . . . . . . . . . . . Crushed . | . . . . . . . . . . . Highest Temperature 801 | . . . 18 36 232 . 143 29 398 801 Average Temperature 112 | . . . 6 20 95 . 48 6 111 218 Received Heat Transfer 1597 | . . . 189 342 96 . 243 369 327 31 Effects 15 | . . . . . . . . . 4 11 Shutdowns 1 | . . . . . . . . . 1 . Interference 5 | . . . . . . . . . 3 2 Short Circuit 2 | . . . . . . . . . . 2 Damage (minor) 1 | . . . . . . . . . . 1 Damage (major) 5 | . . . . . . . . . . 5 Damage (core) 1 | . . . . . . . . . . 1 Siege Activations . | . . . . . . . . . . . Robots Corrupted . | . . . . . . . . . . . Combat Hostiles . | . . . . . . . . . . . Parts Fried . | . . . . . . . . . . . Impact Corruptions . | . . . . . . . . . . . Robots Melted . | . . . . . . . . . . . Combat Hostiles . | . . . . . . . . . . . Parts Melted 4 | . . . . 3 1 . . . . . Heat Transferred 2400 | . . . 111 999 . . 100 . 1190 . Parts Sabotaged . | . . . . . . . . . . . Parts Stolen . | . . . . . . . . . . . Parts Stripped . | . . . . . . . . . . . Power Chain Reactions 1 | . . . . . . . 1 . . . Missiles Intercepted . | . . . . . . . . . . . Alert | -11 -10 -10 -9 -8 -7 -7 -7 -6 -5 -4 ------- Run | Scr Mat Min Mat Mat Fac Was Fac Fac Fac Fac Peak Influence 766 | . . . 198 266 369 107 332 427 766 374 Initial 323 | . . . . . 103 107 37 139 . 323 Average 137 | . . . 82 95 126 90 184 100 211 303 Maximum Alert Level 3 | . . . . 1 1 . 1 2 3 1 Low Security (%) 79 | 100 100 100 100 89 85 100 61 91 66 14 Level 1 18 | . . . . 10 14 . 38 8 23 85 Level 2 1 | . . . . . . . . . 4 . Level 3 1 | . . . . . . . . . 5 . Level 4 . | . . . . . . . . . . . Level 5 . | . . . . . . . . . . . High Security . | . . . . . . . . . . . Max Security . | . . . . . . . . . . . Squads Dispatched 24 | . . . 2 1 3 . 1 10 7 . Investigation 11 | . . . 1 1 2 . . 4 3 . Extermination 7 | . . . . . . . . 4 3 . Reinforcement 4 | . . . 1 . 1 . 1 1 . . Assault . | . . . . . . . . . . . Garrison 2 | . . . . . . . . 1 1 . Intercept . | . . . . . . . . . . . Construction Impeded 1 | . . . . . . . 1 . . . Haulers Reinforced . | . . . . . . . . . . . Stealth | -11 -10 -10 -9 -8 -7 -7 -7 -6 -5 -4 --------- Run | Scr Mat Min Mat Mat Fac Was Fac Fac Fac Fac Distress Signals 12 | . . . 2 3 3 . . 3 1 . Communications Jammed . | . . . . . . . . . . . Distress Signals . | . . . . . . . . . . . Times Spotted 160 | . 2 . 12 22 24 6 10 32 42 10 Peak Tracking Total 7 | . 2 . 5 5 5 6 3 6 7 4 Tactical Retreats 15 | . . . . 4 2 . . 4 5 . Traps | -11 -10 -10 -9 -8 -7 -7 -7 -6 -5 -4 ------- Run | Scr Mat Min Mat Mat Fac Was Fac Fac Fac Fac Traps Triggered 13 | . 2 . . 1 1 . 1 2 6 . Indirectly . | . . . . . . . . . . . Trap Hack Attempts . | . . . . . . . . . . . Triggered . | . . . . . . . . . . . Disarmed 6 | . . . . . . . . 6 . . Reprogrammed . | . . . . . . . . . . . Reused . | . . . . . . . . . . . Traps Extracted . | . . . . . . . . . . . Installed . | . . . . . . . . . . . Triggered . | . . . . . . . . . . . Machines | -11 -10 -10 -9 -8 -7 -7 -7 -6 -5 -4 ---------- Run | Scr Mat Min Mat Mat Fac Was Fac Fac Fac Fac Machines Disabled 9 | . . . . . 1 . 3 2 2 1 Max in Single Turn 1 | . . . . . 1 . 1 1 1 1 Garrison Access 4 | . . . . . 1 . . 2 1 . Machines Sabotaged . | . . . . . . . . . . . Garrisons Compromised . | . . . . . . . . . . . Overloaded Fab Kills . | . . . . . . . . . . . Fab Network Shutdowns 1 | . . . . . . . . . 1 . Hacking | -11 -10 -10 -9 -8 -7 -7 -7 -6 -5 -4 --------- Run | Scr Mat Min Mat Mat Fac Was Fac Fac Fac Fac Machines Accessed 28 | . . 1 2 3 4 . . 10 7 1 Terminals 12 | . . . 2 3 1 . . 4 2 . Fabricators 5 | . . . . . 2 . . 1 1 1 Repair Stations 2 | . . . . . . . . 1 1 . Recycling Units 1 | . . . . . . . . 1 . . Scanalyzers 2 | . . . . . . . . 1 1 . Garrison Access 5 | . . . . . 1 . . 2 2 . Total Hacks 79 | . . 1 5 5 10 . . 34 20 4 Successful 46 | . . 1 3 3 2 . . 20 13 4 Failed 33 | . . . 2 2 8 . . 14 7 . Catastrophic 1 | . . . . . 1 . . . . . Database Lockouts . | . . . . . . . . . . . Manual 4 | . . . . . 1 . . 1 2 . Terminals 34 | . . . 5 5 3 . . 16 5 . Fabricators 14 | . . . . . 4 . . 3 3 4 Repair Stations 10 | . . . . . . . . 8 2 . Recycling Units 1 | . . . . . . . . 1 . . Scanalyzers 8 | . . . . . . . . 3 5 . Garrison Access 11 | . . . . . 3 . . 3 5 . Terminal Hacks 18 | . . 1 3 3 . . . 7 4 . Record 3 | . . . . . . . . . 3 . Part Schematic 3 | . . . . . . . . 3 . . Robot Analysis 2 | . . . 1 . . . . . 1 . Prototype ID Bank 2 | . . . . 2 . . . . . . Open Door 1 | . . 1 . . . . . . . . Unreport Threat 3 | . . . . . . . . 3 . . Locate Traps 1 | . . . 1 . . . . . . . Disarm Traps 1 | . . . . . . . . 1 . . Dispatch Records 1 | . . . . 1 . . . . . . Hauler Manifests 1 | . . . 1 . . . . . . . Fabricator Hacks 9 | . . . . . 1 . . 1 3 4 Load Schematic 4 | . . . . . . . . 1 1 2 Build 5 | . . . . . 1 . . . 2 2 Repair Station Hacks 10 | . . . . . . . . 8 2 . Scan Component 5 | . . . . . . . . 4 1 . Repair 5 | . . . . . . . . 4 1 . Recycling Unit Hacks 1 | . . . . . . . . 1 . . Report Inventory 1 | . . . . . . . . 1 . . Scanalyzer 3 | . . . . . . . . . 3 . Insert Component 1 | . . . . . . . . . 1 . Analyze 2 | . . . . . . . . . 2 . Garrison Access Hacks 4 | . . . . . 1 . . 2 1 . Seal Access 4 | . . . . . 1 . . 2 1 . Unauthorized Hacks 1 | . . . . . . . . 1 . . Terminals . | . . . . . . . . . . . Fabricators . | . . . . . . . . . . . Repair Stations . | . . . . . . . . . . . Recycling Units . | . . . . . . . . . . . Scanalyzers 1 | . . . . . . . . 1 . . Extract 1 | . . . . . . . . 1 . . Garrison Access . | . . . . . . . . . . . Data Cores Recovered . | . . . . . . . . . . . Used . | . . . . . . . . . . . Hacking Detections 20 | . . . 1 2 4 . . 8 5 . Full Trace Events 9 | . . . 1 . 2 . . 3 3 . Feedback Events . | . . . . . . . . . . . Feedback Blocked . | . . . . . . . . . . . Robot Schematics Acquired . | . . . . . . . . . . . Robots Built 3 | . . . . . 3 . . . . . Matter 219 | . . . . . 219 . . . . . Time 58 | . . . . . 58 . . . . . Total Robot Build Rating 9 | . . . . . 9 . . . . . Part Schematics Acquired 6 | . . . . . . . . 5 1 . Parts Built 6 | . . . . . . . . . 2 4 Matter 958 | . . . . . . . . . 512 446 Time 479 | . . . . . . . . . 256 223 Total Part Build Rating 40 | . . . . . . . . . 14 26 Parts Repaired 5 | . . . . . . . . 4 1 . Time 202 | . . . . . . . . 152 50 . Parts Recycled . | . . . . . . . . . . . Recycled Matter . | . . . . . . . . . . . Retrieved Matter . | . . . . . . . . . . . Retrieved Components . | . . . . . . . . . . . Parts Scanalyzed 1 | . . . . . . . . . 1 . Part Schematics Acquired 1 | . . . . . . . . . 1 . Parts Damaged . | . . . . . . . . . . . Bothacking | -11 -10 -10 -9 -8 -7 -7 -7 -6 -5 -4 ------------ Run | Scr Mat Min Mat Mat Fac Was Fac Fac Fac Fac Used RIF Installer . | . . . . . . . . . . . Robots Hacked . | . . . . . . . . . . . Non-combat . | . . . . . . . . . . . Combat . | . . . . . . . . . . . Robot Hacks Applied . | . . . . . . . . . . . Relay Couplers Released . | . . . . . . . . . . . Robots Rewired 1 | . . . . . . . . . . 1 Allies Hacked . | . . . . . . . . . . . Hacks Repelled . | . . . . . . . . . . . Allies | -11 -10 -10 -9 -8 -7 -7 -7 -6 -5 -4 -------- Run | Scr Mat Min Mat Mat Fac Was Fac Fac Fac Fac Total Allies 7 | . . . . . 3 . . 3 . 1 Largest Group 3 | . . . . . 3 . . 3 . 1 Highest-Rated Group 93 | . . . . . 48 . . 93 . 49 Highest-Rated Ally 49 | . . . . . 16 . . 31 . 49 Total Orders 3 | . . 3 . . . . . . . . EXPLORE 3 | . . 3 . . . . . . . . Ally Attacks 72 | . . 7 . . 35 . . 26 . 4 Total Damage 897 | . . . . . 363 . . 339 . 195 Kills 9 | . . . . . 1 . . 5 . 3 Allies Corrupted . | . . . . . . . . . . . Allies Melted . | . . . . . . . . . . . Intel | -11 -10 -10 -9 -8 -7 -7 -7 -6 -5 -4 ------- Run | Scr Mat Min Mat Mat Fac Was Fac Fac Fac Fac Robot Analysis Total 2 | . . . 1 . . . . . 1 . Derelict Logs Recovered 2 | . . 2 . . . . . . . . Drone Launches 16 | . . 16 . . . . . . . . Drone Recoveries . | . . . . . . . . . . . Exploration | -11 -10 -10 -9 -8 -7 -7 -7 -6 -5 -4 ------------- Run | Scr Mat Min Mat Mat Fac Was Fac Fac Fac Fac Turns Passed 6754 | 92 123 288 447 649 737 126 309 2008 1467 508 Spaces Moved 3589 | 60 102 137 212 299 377 97 222 990 766 327 Core 41 | 16 . . . . . 25 . . . . Treads 2207 | . . . 189 299 377 43 . 819 480 . Legs 306 | 44 102 137 23 . . . . . . . Wheels . | . . . . . . . . . . . Hover 1021 | . . . . . . 25 212 171 286 327 Flight 14 | . . . . . . 4 10 . . . Fastest Speed 40 | 50 120 120 120 170 170 40 40 61 52 43 Average Speed 136 | 133 120 120 164 170 170 115 96 151 128 68 Slowest Speed 250 | 200 120 120 170 170 190 250 150 190 230 98 Overloaded Moves . | . . . . . . . . . . . Propulsion Burnouts . | . . . . . . . . . . . Robots Hopped . | . . . . . . . . . . . Cave-ins Triggered . | . . . . . . . . . . . Exploration Rate (%) 32 | 4 21 96 23 38 16 74 7 33 30 10 Regions Visited 10 Branch Regions 1 Pre-discovered Areas . | . . . . . . . . . . . Known Exits Taken 4 | . . . 1 1 . . . 1 1 . Unknown Exits Taken 4 | 1 1 1 . . . . 1 . . . Scrap Searched 1 | . . 1 . . . . . . . . Spaces Dug . | . . . . . . . . . . . Terrain Destroyed 85 | . . . . 1 1 1 59 . 10 13 Melee . | . . . . . . . . . . . Projectile 26 | . . . . 1 1 1 . . 10 13 AOE 59 | . . . . . . . 59 . . . Terrain Rammed . | . . . . . . . . . . . Walls Destroyed . | . . . . . . . . . . . Machines Disabled . | . . . . . . . . . . . Actions | -11 -10 -10 -9 -8 -7 -7 -7 -6 -5 -4 --------- Run | Scr Mat Min Mat Mat Fac Was Fac Fac Fac Fac Total 4959 | 69 102 260 271 367 446 105 287 1343 1118 591 Wait 826 | . . 117 7 9 30 . 21 216 193 233 Move 3580 | 59 101 136 211 298 377 96 221 989 765 327 Hop . | . . . . . . . . . . . Pick Up 38 | 4 1 1 4 2 1 1 . 11 13 . Fast Attach 85 | 6 . 3 11 4 6 3 11 21 16 4 Attach 20 | . . . . 1 . 1 4 3 9 2 Detach 7 | . . . . . . . 1 3 3 . Swap 34 | . . . 2 3 2 . . 5 15 7 Drop 82 | . . 3 12 7 6 1 5 15 29 4 Fire 273 | . . . 24 43 24 3 21 72 73 13 Melee 11 | . . . . . . . 3 8 . . Ram 1 | . . . . . . . . . 1 . Kick . | . . . . . . . . . . . Crush 1 | . . . . . . . . . 1 . Escape Stasis . | . . . . . . . . . . . Rewire 1 | . . . . . . . . . . 1 Trap . | . . . . . . . . . . . Miscellaneous . | . . . . . . . . . . . Route ------- -11/Scrapyard -10/Materials -10/Mines (discovered 2 exits: *Mat x2) -9/Materials (discovered 3 exits: *Mat x2 / Min) -8/Materials -7/Factory -7/Waste -7/Factory -6/Factory -5/Factory -4/Factory History --------- Turn | Location | Event 26 | -11/Scrapyard | Discovered new exit (range 15) 93 | -11/Scrapyard | Entered Materials 202 | -10/Materials | Discovered new exit (range 7) 216 | -10/Materials | Entered Mines 219 | -10/Mines | Found the Drone Emporium 224 | -10/Mines | Found Prototype Device 224 | -10/Mines | Identified Bomb Drone Bay 284 | -10/Mines | Learned Materials terminal intel 302 | -10/Mines | Build established: Mutant 331 | -10/Mines | Discovered new exit (range 37) 357 | -10/Mines | Discovered new exit (range 48) 477 | -10/Mines | Learned 8 Materials zone layouts 488 | -10/Mines | Received a Rocket Launcher from a helpful Derelict 504 | -10/Mines | Entered Materials 504 | -9/Materials | Evolved 2 slots: Utility x2 505 | -9/Materials | Identified exit to Mines 505 | -9/Materials | Identified exit to Materials 506 | -9/Materials | Loaded intel: 12 terminal locations 900 | -9/Materials | Discovered exit to Materials (range 15) 951 | -9/Materials | Entered another Materials area 951 | -8/Materials | Evolved 2 slots: Utility x2 1575 | -8/Materials | Discovered new exit (range 11) 1598 | -8/Materials | Identified exit to Factory 1600 | -8/Materials | Entered Factory 1600 | -7/Factory | Evolved 2 slots: Utility x2 2065 | -7/Factory | Fabricated G-47 Trooper? 2337 | -7/Factory | Sucked down chute 2337 | -7/Factory | Entered Waste 2349 | -7/Waste | Spotted C-40 Crusher 2376 | -7/Waste | Spotted C-40 Crusher 2408 | -7/Waste | Spotted C-40 Crusher 2416 | -7/Waste | Crushed by Compactor (1 part destroyed, 2 dropped) 2419 | -7/Waste | Crushed by Compactor (1 part destroyed, 2 dropped) 2421 | -7/Waste | Spotted C-40 Crusher 2422 | -7/Waste | Crushed by Compactor (1 part destroyed, 2 dropped) 2429 | -7/Waste | Crushed by Compactor (1 part destroyed, 2 dropped) 2431 | -7/Waste | Spotted C-40 Crusher 2431 | -7/Waste | Spotted C-40 Crusher 2446 | -7/Waste | Discovered new exit (range 12) 2460 | -7/Waste | Lost 6 parts (1p4u1w) 2463 | -7/Waste | Entered Factory 2766 | -7/Factory | Discovered new exit (range 9) 2772 | -7/Factory | Entered another Factory area 2772 | -6/Factory | Evolved 2 slots: Propulsion x1, Utility x1 3733 | -6/Factory | Build established: Scavenger-Mutant 4086 | -6/Factory | Garrison activated, responded to threat 4193 | -6/Factory | Allied Derelicts emerged from ambush trap array 4566 | -6/Factory | Repaired Hvy. Armor Plating 4606 | -6/Factory | Repaired Arm. Treads 4627 | -6/Factory | Build established: Mutant 4646 | -6/Factory | Repaired Arm. Treads 4685 | -6/Factory | Repaired Arm. Treads 4738 | -6/Factory | Discovered new exit (range 12) 4779 | -6/Factory | Identified exit to Factory 4780 | -6/Factory | Entered another Factory area 4780 | -5/Factory | Evolved 2 slots: Utility x1, Weapon x1 4985 | -5/Factory | Garrison activated, responded to threat 5214 | -5/Factory | System corruption reached 10% 5418 | -5/Factory | Found Hvy. Insulated Plating 5818 | -5/Factory | Repaired Force Field 5990 | -5/Factory | Fabricated Imp. Gyrokinetic Inverter (x2) 6095 | -5/Factory | Local fabrication network quarantined 6237 | -5/Factory | Discovered new exit (range 12) 6243 | -5/Factory | Identified exit to Factory 6247 | -5/Factory | Entered another Factory area 6247 | -4/Factory | Evolved 2 slots: Propulsion x1, Weapon x1 6273 | -4/Factory | Spotted B-86 Titan 6425 | -4/Factory | Fabricated Imp. Gyrokinetic Inverter (x2) 6506 | -4/Factory | Build established: Scavenger-Gunner 6537 | -4/Factory | Fabricated Mass Driver (x2) 6755 | -4/Factory | Self-destructed Last Messages --------------- 06749_ Imp. Gyrokinetic Inverter permanently disabled. 06749_ Overheating: Short circuit. 06749_ K-01 Serf collects debris. 06750_ Imp. Gyrokinetic Inverter permanently disabled. 06750_ Overheating: Short circuit. 06750_ R-10 Processor collects VTOL Module. 06750_ K-01 Serf collects debris. 06751_ Overheating: Core damaged (-115). 06751_ K-01 Serf collects debris. 06752_ Penetrated by Slug. 06752_ K-01 Serf collects debris. 06753_ Power failure averted by Imp. Cryofiber Web. 06753_ R-10 Processor collects VTOL Module. 06754_ Power failure averted by Imp. Cryofiber Web. 06754_ K-01 Serf collects debris. 06754_ R-10 Processor collects Unknown Special Weapon. 06755_ Power failure averted by Imp. Cryofiber Web. 06755_ Penetrated by Slug. 06755_ K-01 Serf collects debris. [Achievement: Tester] Map ----- +----------------------------------------------------+ | ?????????????????????????????????????????????????? | | ?????????????????????????????????????????????????? | | ?????????????????????????????????????????????????? | | ?????????????????????????????????????????????????? | | ?????????????????????????????????????????????????? | | ?????????????????????????????????????????????????? | | ?????????????????????????????????????????????????? | | ?????????????????????????????????????????????????? | | ?????????????????????????????????????????????????? | | ?????????????????????????????????????????????????? | | ?????????????????????????????????????????????????? | | ????????????????????????? ?????????????????????? | | ????????????????????????? ?????????????????????? | | ????????????????????????? ?????????????????????? | | ????????????????????????? ?????????????????????? | | ????????????????????????? ?????????????????????? | | ????????????????????????? ?????????????????????? | | ????????????????????????? ?????????????????????? | | ????????????????????????? ?????????????????????? | | ?????????????????????????# #?????????????????????? | | ?????????????????????????# #?????????????????????? | | ?????????????????????????# #?????????????????????? | | ?????????????????????????# #?????????????????????? | | ??????? ??????????????##Y#?????????????????????? | | ????????" ##############; #?????????????????????? | | ???????"" @ #?????????????????????? | | ???????"" #?????????????????????? | | ???????"" k #?????????????????????? | | ????? #?????????????????????? | | ????? #?????????????????????? | | ???????????######### ! #?????????????????????? | | ???????????????????# %! #?????????????????????? | | ?????????########### =!R% #?????????????????????? | | ?????????# # kk*%k%######????????????????? | | ?????????# + %%s%%R ?????????????? | | ?????????# # [*=%*%% ?????????????? | | ?????????# # u##;####### ??????????????? | | ?????????#########?# k###! ????????????????????? | | ###???#######??????# ####"#####?????????????????? | | ##### #??????# # #?????????????????? | | ! ######## # """ ??????????????????? | | + "" ""???????????????????? | | ########### "" ""???????????????????? | | ##### #?????????# #?????????????????? | | ######## ###?????????# [ + ????????????????? | | # ! # #???????????# |[ # ???????????????? | | + # #???????????# ![ #?????????????????? | | # # #???????????# ! =#?????????????????? | | # # #???????????##########?????????????????? | | #? # #??????????????????????????????????????? | +----------------------------------------------------+ Best States ------------- Heat Dissipation 70 Energy Generation 20 Energy Capacity 815 Matter Stores 300 Matter Capacity 300 Sight Range 16 Terrain Scan Range 20 Terrain Scan Density 10 Power Amplification 20 Base Temperature (-) 150 Armor Coverage 825 Resistance: KI 40 Resistance: TH 20 Resistance: EX 20 Resistance: EM 50 Resistance: I 20 Resistance: S 20 Resistance: P 20 Core Shielding 20 Weapon Cycling 30 Phase Shifting 5 Evasion (%) 62 Targeting Accuracy 10 Target Analysis 6 Recoil Reduction 6 Particle Charging 15 Kinecelleration 40 Offensive Hacking 10 Item Schematics ----------------- Imp. Gyrokinetic Inverter | -6/Factory | Hacked Lightning Gun | -6/Factory | Extracted Imp. Medium Treads | -6/Factory | Extracted Mass Driver | -6/Factory | Hacked Proton Cannon | -6/Factory | Hacked Antigrav System | -5/Factory | Scanalyzed Robot Schematics ------------------ None Fabricated ------------ G-47 Trooper | x3 | -7/Factory | Preloaded Imp. Gyrokinetic Inverter | x2 | -5/Factory Imp. Gyrokinetic Inverter | x2 | -4/Factory Mass Driver | x2 | -4/Factory Alien Tech Used ----------------- None Achievements -------------- Release The Drones! Tester Challenges ------------ None Game ------ Seed HeatSlugAirjet Manual? 0 Play Time 01:23:19 Cumulative 32.4 hours Start 2021.04.26 @ 07:53:04 End 2021.04.26 @ 18:32:32 Sessions 3 Manual Loads 0 Difficulty Adventurer Special Mode None Game No. 36 Rogue 35 Adventurer 1 Explorer 0 Win Type - Total 0 Types 0/0/0/0/0/0/0/0/0 Lore% 49 Gallery% 50 Achievement% 44 Wizard Run 0 Options --------- ASCII 0 Keyboard 0 Movement Numpad Keybinds 0 Fullscreen 1 Font 18/SmallcapsGlow Map View 76x50 Tactical HUD 1 Map Filters NONE Filters NONE Steam 1 RUN: 5e21c4b7-36f5-4022-9314-135325a9ad51